[Event "Runavik Open 2018"]
[Site "Runavik"]
[Date "2018.11.16"]
[Round "6"]
[White "Schadd, Jan"]
[Black "Fjallheim, Leif Reinert"]
[Result "1-0"]
[ECO "A05"]
[WhiteElo "1842"]
[BlackElo "1919"]
[Annotator "NA RC"]
[PlyCount "61"]
[EventDate "2018.11.12"]
[EventType "swiss"]
[EventCountry "FAI"]
[SourceTitle "playchess.com"]
[Source "ChessBase"]
[SourceQuality "1"]
[TimeControl "40/5400+30:900+30"]

{[%evp 14,53,42,53,56,32767,32767,32767,32767,32767,32767,-9,25,14,36,19,28,14,32767,32767,83,110,218,236,240,124,129,125,128,133,277,337,544,666,688,778,1003,1209,1197,1438,29995,29996]} 1. Nf3 {[%emt 0:00:00]} Nf6 {[%emt 0:00:00]} 2. g3 {[%emt 0:00:00]} g6 {[%emt 0:00:03]} 3. Bg2 {[%emt 0:00:07]} Bg7 {[%emt 0:00:17]} 4. d4 {[%emt 0:01:08]} d6 {[%emt 0:00:40] A49: 1 d4 Nf6 2 Nf3 g6 3 g3: Anti-King's Indian systems} (4... O-O 5. O-O d6 6. b3 a5 7. Bb2 a4 8. c4 c6 9. e3 Bg4 10. h3 Bxf3 11. Bxf3 Nbd7 12. Nc3 a3 13. Bc1 e5 14. dxe5 Nxe5 15. Bg2 {1-0 (42) Giri,A (2782)-Aronian,L (2767) chess.com INT 2018}) 5. Nc3 {[%emt 0:00:15]} O-O {[%emt 0:01:16]} 6. Bg5 {[%emt 0:01:49]} c6 {[%emt 0:05:08]} 7. e4 {[%emt 0:06:46]} b5 $146 {[%emt 0:03:29]} ({Predecessor:} 7... Qa5 8. O-O Bg4 9. Qc1 Nbd7 10. h3 Bxf3 11. Bxf3 Rfc8 12. a3 Qd8 {1-0 (47) Pilotte,B (1755)-Duclos,A (1875) Sherbrooke 2004}) 8. e5 {[%emt 0:02:39]} Nd5 {[%emt 0:03:57]} 9. Nxd5 {[%emt 0:06:33]} cxd5 {[%emt 0:00:08]} 10. exd6 {[%emt 0:00:08]} Qxd6 {[%emt 0:01:29]} 11. O-O {[%emt 0:00:08]} Bg4 {[%emt 0:09:12]} 12. Qd3 {[%emt 0:04:53]} Bxf3 {[%emt 0:04:36]} 13. Bxf3 {[%emt 0:01:43]} Qd7 {[%emt 0:05:56]} 14. c3 {[%emt 0:01:41]} a6 {[%emt 0:01:50]} 15. a4 {[%emt 0:07:52]} b4 {[%emt 0:06:17]} 16. c4 {[%emt 0:08:46]} Nc6 {[%emt 0:17:39]} 17. Bxd5 {[%emt 0:06:48]} Bxd4 {[%emt 0:03:37] [#]} (17... Nxd4 $16 {was called for.} 18. Bxa8 Rxa8) 18. Rad1 $1 {[%emt 0:03:58]} e5 {[%emt 0:02:08]} 19. Qe4 {[%emt 0:03:15]} (19. Qf3 $18 Rac8 20. Bh6) 19... Rac8 {[%emt 0:05:28]} 20. Bf6 {[%emt 0:04:06]} Qf5 {[%emt 0:06:04]} ({Better is} 20... Bxb2 $14 21. f4 Qf5 22. Qxf5 gxf5) 21. Qh4 {[%emt 0:03:52]} h5 {[%emt 0:07:52] [#]} (21... Qh5 $16) 22. h3 $1 {[%emt 0:02:48]} g5 $2 {[%emt 0:05:01]} (22... Bb6 23. Be4 Qe6) 23. Bxg5 {[%emt 0:01:28]} Qg6 {[%emt 0:01:41]} 24. Bf6 {[%emt 0:01:48]} Nd8 {[%emt 0:00:20]} 25. Be4 {[%emt 0:05:40]} Qh6 {[%emt 0:00:14]} 26. g4 {[%emt 0:01:25]} Qf4 {[%emt 0:01:32]} 27. Qxh5 {[%emt 0:00:22]} Bxf2+ {[%emt 0:03:41]} 28. Rxf2 {[%emt 0:00:39]} Qg3+ {[%emt 0:00:09]} 29. Kh1 {[%emt 0:00:16]} Qh2+ {[%emt 0:00:20]} 30. Kxh2 {[%emt 0:00:14]} Ne6 {[%emt 0:00:06]} 31. Qh7# {[%emt 0:00:12]} 1-0

[Event "Runavik Open 2018"]
[Site "Runavik"]
[Date "2018.11.16"]
[Round "6"]
[White "Pinheiro Diamant, Jonatan"]
[Black "Nielsen, Jon I Horni"]
[Result "1-0"]
[ECO "C78"]
[WhiteElo "1789"]
[BlackElo "1710"]
[Annotator "NA RC"]
[PlyCount "81"]
[EventDate "2018.11.12"]
[EventType "swiss"]
[EventCountry "FAI"]
[SourceTitle "playchess.com"]
[Source "ChessBase"]
[SourceQuality "1"]
[TimeControl "40/5400+30:900+30"]

1. e4 {[%emt 0:00:00]} e5 {[%emt 0:00:30]} 2. Nf3 {[%emt 0:00:00]} Nc6 {[%emt 0:01:22]} 3. Bb5 {[%emt 0:00:00]} a6 {[%emt 0:01:34]} 4. Ba4 {[%emt 0:00:00]} b5 {[%emt 0:02:41]} 5. Bb3 {[%emt 0:00:00]} Nf6 {[%emt 0:01:46]} 6. O-O {[%emt 0:00:00]} d6 {[%emt 0:02:34]} 7. Ng5 {[%emt 0:00:06]} d5 {[%emt 0:03:13]} 8. exd5 {[%emt 0:00:07]} Nd4 {[%emt 0:01:22]} 9. Nc3 {[%emt 0:00:58]} Bd6 {[%emt 0:03:53]} 10. Re1 {[%emt 0:09:33]} O-O {[%emt 0:02:19]} 11. Nce4 {[%emt 0:06:53]} h6 {[%emt 0:06:19]} 12. Nxd6 {[%emt 0:07:00]} cxd6 {[%emt 0:01:53]} 13. Ne4 {[%emt 0:02:06]} Nxe4 {[%emt 0:03:12]} 14. Rxe4 {[%emt 0:00:13]} f5 {[%emt 0:00:46]} 15. Rxd4 {[%emt 0:10:29]} exd4 {[%emt 0:00:15]} 16. d3 {[%emt 0:02:12]} Qh4 {[%emt 0:04:28]} 17. g3 {[%emt 0:07:33]} Qf6 {[%emt 0:01:57]} 18. Bd2 {[%emt 0:03:58]} Bd7 {[%emt 0:04:35]} 19. Qf3 {[%emt 0:03:01]} Rae8 {[%emt 0:02:59]} 20. Bb4 {[%emt 0:05:15]} g5 {[%emt 0:06:00]} 21. a4 {[%emt 0:08:51]} f4 {[%emt 0:03:12]} 22. axb5 {[%emt 0:02:15]} axb5 {[%emt 0:02:55]} 23. Ra6 {[%emt 0:02:15]} Bh3 {[%emt 0:01:48]} 24. g4 {[%emt 0:02:30]} Ra8 {[%emt 0:02:29]} 25. Ra3 {[%emt 0:02:34]} Rae8 {[%emt 0:04:58]} 26. Qxh3 {[%emt 0:00:54]} f3 {[%emt 0:00:56]} 27. Ra6 {[%emt 0:03:05]} Qf4 {[%emt 0:01:20]} 28. Rxd6 {[%emt 0:03:28]} Ra8 {[%emt 0:08:25]} 29. Re6 {[%emt 0:04:34]} Ra1+ {[%emt 0:01:04]} 30. Re1 {[%emt 0:01:09]} Rfa8 {[%emt 0:00:40]} 31. Qh5 {[%emt 0:03:11]} Kh7 {[%emt 0:02:59]} 32. h3 {[%emt 0:04:08]} Rxe1+ {[%emt 0:00:35]} 33. Bxe1 {[%emt 0:00:02]} Ra1 {[%emt 0:00:09]} 34. Qe8 {[%emt 0:00:37]} Qd2 {[%emt 0:03:49]} 35. Kf1 {[%emt 0:01:35]} Rd1 {[%emt 0:02:32]} 36. d6 {[%emt 0:03:00]} Qe2+ {[%emt 0:00:29]} 37. Qxe2 {[%emt 0:00:04]} fxe2+ {[%emt 0:00:15]} 38. Kxe2 {[%emt 0:00:02]} Ra1 {[%emt 0:00:09]} 39. d7 {[%emt 0:00:50]} Ra8 {[%emt 0:00:02]} 40. Be6 {[%emt 0:00:00]} Rd8 {[%emt 0:00:00]} 41. Ba5 {[%emt 0:00:56]} 1-0

[Event "Runavik Open 2018"]
[Site "Runavik"]
[Date "2018.11.16"]
[Round "6"]
[White "Olsen, Kaj"]
[Black "Fjallheim, Benjamin Reinert"]
[Result "0-1"]
[ECO "C70"]
[WhiteElo "1718"]
[BlackElo "1340"]
[Annotator "NA RC"]
[PlyCount "62"]
[EventDate "2018.11.12"]
[EventType "swiss"]
[EventCountry "FAI"]
[SourceTitle "playchess.com"]
[Source "ChessBase"]
[SourceQuality "1"]
[TimeControl "40/5400+30:900+30"]

1. e4 {[%emt 0:01:05]} e5 {[%emt 0:00:00]} 2. Nf3 {[%emt 0:01:32]} Nc6 {[%emt 0:00:25]} 3. Bb5 {[%emt 0:00:48]} a6 {[%emt 0:00:33]} 4. Ba4 {[%emt 0:00:11]} b5 {[%emt 0:00:34]} 5. Bb3 {[%emt 0:00:08]} Nf6 {[%emt 0:00:45]} 6. O-O {[%emt 0:00:14]} Bc5 {[%emt 0:01:23]} 7. c3 {[%emt 0:00:49]} d6 {[%emt 0:00:44]} 8. h3 {[%emt 0:00:15]} O-O {[%emt 0:00:57]} 9. d4 {[%emt 0:02:02]} Ba7 {[%emt 0:01:03]} 10. Bg5 {[%emt 0:01:10]} h6 {[%emt 0:01:22]} 11. Bh4 {[%emt 0:00:37]} Bb7 {[%emt 0:02:38]} 12. Re1 {[%emt 0:01:19]} Re8 {[%emt 0:03:39]} 13. dxe5 {[%emt 0:23:01]} Nxe5 {[%emt 0:00:55]} 14. Nbd2 {[%emt 0:00:37]} Nd3 {[%emt 0:11:42]} 15. Bxf6 {[%emt 0:02:44]} Bxf2+ {[%emt 0:05:21]} 16. Kf1 {[%emt 0:00:30]} Qxf6 {[%emt 0:01:38]} 17. Re2 {[%emt 0:00:08]} Ba7 {[%emt 0:01:52]} 18. Qc2 {[%emt 0:03:17]} Nf4 {[%emt 0:09:32]} 19. Ree1 {[%emt 0:01:04]} c5 {[%emt 0:01:28]} 20. c4 {[%emt 0:01:05]} Ne6 {[%emt 0:04:45]} 21. Kg1 {[%emt 0:02:19]} Nd4 {[%emt 0:00:44]} 22. Qd3 {[%emt 0:00:58]} Nxf3+ {[%emt 0:02:36]} 23. Nxf3 {[%emt 0:00:16]} Qxb2 {[%emt 0:00:38]} 24. Qxd6 {[%emt 0:00:57]} Bxe4 {[%emt 0:01:28]} 25. Qxa6 {[%emt 0:01:25]} Bxf3 {[%emt 0:01:33]} 26. gxf3 {[%emt 0:02:26]} Qd4+ {[%emt 0:05:59]} 27. Kh1 {[%emt 0:01:45]} Rxe1+ {[%emt 0:01:20]} 28. Rxe1 {[%emt 0:00:11]} Qf2 {[%emt 0:01:28]} 29. Rg1 {[%emt 0:02:32]} Qxf3+ {[%emt 0:00:14]} 30. Rg2 {[%emt 0:00:09]} Qf1+ {[%emt 0:00:22]} 31. Kh2 {[%emt 0:01:38]} Bb8+ {[%emt 0:00:14]} 0-1

[Event "Runavik Open 2018"]
[Site "Runavik"]
[Date "2018.11.16"]
[Round "6"]
[White "Hojgaard, Brandur"]
[Black "Tummasarson, Flovin M."]
[Result "1-0"]
[ECO "D02"]
[WhiteElo "1708"]
[BlackElo "1378"]
[Annotator "NA RC"]
[PlyCount "91"]
[EventDate "2018.11.12"]
[EventType "swiss"]
[EventCountry "FAI"]
[SourceTitle "playchess.com"]
[Source "ChessBase"]
[SourceQuality "1"]
[TimeControl "40/5400+30:900+30"]

1. Nf3 {[%emt 0:00:00]} Nf6 {[%emt 0:00:00]} 2. d4 {[%emt 0:00:00]} d5 {[%emt 0:00:01]} 3. Bf4 {[%emt 0:00:12]} e6 {[%emt 0:00:47]} 4. e3 {[%emt 0:01:10]} c5 {[%emt 0:01:01]} 5. c3 {[%emt 0:00:13]} Nc6 {[%emt 0:00:44]} 6. Nbd2 {[%emt 0:00:54]} Bd7 {[%emt 0:02:33]} 7. Bd3 {[%emt 0:00:27]} Be7 {[%emt 0:00:57]} 8. h3 {[%emt 0:01:01]} O-O {[%emt 0:02:04]} 9. Qe2 {[%emt 0:01:09]} c4 {[%emt 0:04:40]} 10. Bc2 {[%emt 0:01:09]} b5 {[%emt 0:08:12]} 11. O-O {[%emt 0:02:08]} Qb6 {[%emt 0:05:15]} 12. e4 {[%emt 0:08:48]} b4 {[%emt 0:10:42]} 13. e5 {[%emt 0:20:58]} Ne8 {[%emt 0:09:12]} 14. Ng5 {[%emt 0:10:13]} Bxg5 {[%emt 0:05:36]} 15. Bxg5 {[%emt 0:00:23]} f6 {[%emt 0:00:37]} 16. exf6 {[%emt 0:08:17]} Nxf6 {[%emt 0:00:27]} 17. Nf3 {[%emt 0:01:39]} bxc3 {[%emt 0:02:52]} 18. bxc3 {[%emt 0:00:38]} Qc7 {[%emt 0:01:05]} 19. Qe3 {[%emt 0:04:08]} Nh5 {[%emt 0:05:09]} 20. Rfe1 {[%emt 0:04:22]} Rab8 {[%emt 0:05:35]} 21. Qd2 {[%emt 0:05:35]} Kh8 {[%emt 0:01:42]} 22. Rab1 {[%emt 0:00:48]} Rxb1 {[%emt 0:02:51]} 23. Bxb1 {[%emt 0:01:12]} a5 {[%emt 0:09:12]} 24. Qc2 {[%emt 0:05:33]} g6 {[%emt 0:00:49]} 25. Qd2 {[%emt 0:00:31]} Qb8 {[%emt 0:03:04]} 26. Bh6 {[%emt 0:05:42]} Rf7 {[%emt 0:01:34]} 27. Bc2 {[%emt 0:01:55]} Nf4 {[%emt 0:02:49]} 28. Rb1 {[%emt 0:05:12]} Qc7 {[%emt 0:01:27]} 29. Ng5 {[%emt 0:02:04]} Rf6 {[%emt 0:01:06]} 30. Nf3 {[%emt 0:00:31]} Nxh3+ {[%emt 0:01:20]} 31. Kf1 {[%emt 0:02:56]} Nf4 {[%emt 0:06:08]} 32. Ba4 {[%emt 0:03:07]} Nd3 {[%emt 0:01:21]} 33. Bc2 {[%emt 0:01:06]} Nf4 {[%emt 0:00:32]} 34. Qe3 {[%emt 0:00:39]} Kg8 {[%emt 0:04:11]} 35. Ne5 {[%emt 0:00:35]} Nh5 {[%emt 0:01:00]} 36. Nxd7 {[%emt 0:01:42]} Qxd7 {[%emt 0:00:10]} 37. Ba4 {[%emt 0:00:33]} Qd6 {[%emt 0:00:34]} 38. Bxc6 {[%emt 0:00:35]} Qxc6 {[%emt 0:00:07]} 39. Rb8+ {[%emt 0:00:33]} Kf7 {[%emt 0:00:17]} 40. g4 {[%emt 0:00:00]} Ng7 {[%emt 0:00:00]} 41. Qe5 {[%emt 0:04:51]} Ne8 {[%emt 0:03:38]} 42. Bg5 {[%emt 0:03:11]} Rf3 {[%emt 0:01:14]} 43. Kg2 {[%emt 0:01:01]} Rxc3 {[%emt 0:00:39]} 44. Qh8 {[%emt 0:00:45]} Rc2 45. Qxh7+ {[%emt 0:00:30]} Ng7 46. Qg8# {[%emt 0:00:30]} 1-0

[Event "Runavik Open 2018"]
[Site "Runavik"]
[Date "2018.11.16"]
[Round "6"]
[White "Markensten, Max"]
[Black "Apol, Luitjen Akselsson"]
[Result "1-0"]
[ECO "E97"]
[WhiteElo "1660"]
[BlackElo "1735"]
[Annotator "NA RC"]
[PlyCount "99"]
[EventDate "2018.11.12"]
[EventType "swiss"]
[EventCountry "FAI"]
[SourceTitle "playchess.com"]
[Source "ChessBase"]
[SourceQuality "1"]
[TimeControl "40/5400+30:900+30"]

1. d4 {[%emt 0:00:00]} Nf6 {[%emt 0:00:00]} 2. c4 {[%emt 0:00:00]} g6 {[%emt 0:00:32]} 3. Nc3 {[%emt 0:00:00]} Bg7 {[%emt 0:00:39]} 4. e4 {[%emt 0:00:00]} d6 {[%emt 0:00:17]} 5. Nf3 {[%emt 0:00:00]} O-O {[%emt 0:00:29]} 6. Be2 {[%emt 0:00:04]} e5 {[%emt 0:00:20]} 7. O-O {[%emt 0:00:27]} Nc6 {[%emt 0:00:42]} 8. d5 {[%emt 0:00:07]} Ne7 {[%emt 0:00:08]} 9. b4 {[%emt 0:00:07]} Ne8 {[%emt 0:01:49]} 10. Nd2 {[%emt 0:03:17]} f5 {[%emt 0:01:14]} 11. c5 {[%emt 0:00:49]} f4 {[%emt 0:01:02]} 12. f3 {[%emt 0:00:34]} Rf7 {[%emt 0:02:46]} 13. Nc4 {[%emt 0:01:20]} Bf8 {[%emt 0:02:01]} 14. Ba3 {[%emt 0:01:38]} g5 {[%emt 0:02:33]} 15. b5 {[%emt 0:01:48]} Ng6 {[%emt 0:08:09]} 16. Na4 {[%emt 0:08:02]} h5 {[%emt 0:06:15]} 17. b6 {[%emt 0:01:10]} dxc5 {[%emt 0:11:14]} 18. Nxc5 {[%emt 0:07:25]} Bxc5+ {[%emt 0:24:04]} 19. Bxc5 {[%emt 0:00:11]} axb6 {[%emt 0:00:10]} 20. Bb4 {[%emt 0:02:13]} b5 {[%emt 0:07:11]} 21. Nb2 {[%emt 0:07:59]} c6 {[%emt 0:03:46]} 22. dxc6 {[%emt 0:02:56]} Qb6+ {[%emt 0:01:16]} 23. Kh1 {[%emt 0:00:49]} bxc6 {[%emt 0:00:10]} 24. Nd3 {[%emt 0:05:18]} Ng7 {[%emt 0:04:16]} 25. Bd6 {[%emt 0:08:14]} Qd4 {[%emt 0:03:33]} 26. Nxe5 {[%emt 0:00:48]} Qxd1 {[%emt 0:00:56]} 27. Bxd1 {[%emt 0:02:53]} Nxe5 {[%emt 0:01:17]} 28. Bxe5 {[%emt 0:00:52]} Be6 {[%emt 0:01:17]} 29. Bb3 {[%emt 0:01:23]} Bxb3 {[%emt 0:04:52]} 30. axb3 {[%emt 0:00:06]} Rff8 {[%emt 0:03:38]} 31. h4 {[%emt 0:04:38]} Rxa1 {[%emt 0:06:51]} 32. Rxa1 {[%emt 0:00:07]} gxh4 {[%emt 0:00:15]} 33. Ra6 {[%emt 0:03:43]} Rd8 {[%emt 0:02:15]} 34. Rxc6 {[%emt 0:01:08]} Rd3 {[%emt 0:00:15]} 35. Rg6 {[%emt 0:01:26]} Rd7 {[%emt 0:00:17]} 36. Bxf4 {[%emt 0:10:48]} Kf7 {[%emt 0:00:53]} 37. Rd6 {[%emt 0:09:04]} Rb7 {[%emt 0:00:33]} 38. Kh2 {[%emt 0:01:08]} Ne6 {[%emt 0:00:28]} 39. Bd2 {[%emt 0:03:24]} Ke7 {[%emt 0:00:34]} 40. Rd5 {[%emt 0:00:00]} Ng7 {[%emt 0:00:00]} 41. Kh3 {[%emt 0:05:57]} Kf7 {[%emt 0:04:38]} 42. Kxh4 {[%emt 0:01:26]} Ke7 {[%emt 0:00:28]} 43. Bc3 {[%emt 0:00:41]} Ne6 {[%emt 0:00:30]} 44. Rxh5 {[%emt 0:00:37]} Kd6 {[%emt 0:00:55]} 45. g4 {[%emt 0:01:14]} b4 {[%emt 0:01:31]} 46. Bd2 {[%emt 0:01:27]} Nc5 {[%emt 0:01:23]} 47. g5 {[%emt 0:01:31]} Nxb3 {[%emt 0:00:22]} 48. Be3 {[%emt 0:05:20]} Na1 {[%emt 0:01:34]} 49. Bd4 {[%emt 0:00:51]} Nc2 {[%emt 0:00:06]} 50. Rh6+ {[%emt 0:00:19]} 1-0

[Event "Runavik Open 2018"]
[Site "Runavik"]
[Date "2018.11.16"]
[Round "6"]
[White "Jacobsen, Markus"]
[Black "Petersen, Elias"]
[Result "1-0"]
[ECO "C23"]
[WhiteElo "1076"]
[BlackElo "1045"]
[Annotator "NA RC"]
[PlyCount "55"]
[EventDate "2018.11.12"]
[EventType "swiss"]
[EventCountry "FAI"]
[SourceTitle "playchess.com"]
[Source "ChessBase"]
[SourceQuality "1"]
[TimeControl "40/5400+30:900+30"]

1. e4 {[%emt 0:00:00]} e5 {[%emt 0:00:01]} 2. Nf3 {[%emt 0:00:18]} Nc6 {[%emt 0:00:35]} 3. Bc4 {[%emt 0:00:42]} Bc5 {[%emt 0:00:40]} 4. c3 {[%emt 0:02:03]} d6 {[%emt 0:01:27]} 5. d4 {[%emt 0:01:16]} exd4 {[%emt 0:01:02]} 6. cxd4 {[%emt 0:00:22]} Bb6 {[%emt 0:01:12]} 7. O-O {[%emt 0:01:22]} Bg4 {[%emt 0:01:37]} 8. h3 {[%emt 0:03:46]} Bh5 {[%emt 0:00:09]} 9. Re1 {[%emt 0:02:31]} h6 {[%emt 0:01:49]} 10. Bb5 {[%emt 0:03:11]} d5 {[%emt 0:03:00]} 11. exd5+ {[%emt 0:00:29]} Nge7 {[%emt 0:00:37]} 12. dxc6 {[%emt 0:00:40]} O-O {[%emt 0:00:31]} 13. cxb7 {[%emt 0:00:46]} Rb8 {[%emt 0:00:27]} 14. b3 {[%emt 0:02:34]} Nf5 {[%emt 0:01:53]} 15. Ba3 {[%emt 0:00:58]} c5 {[%emt 0:00:35]} 16. g4 {[%emt 0:00:50]} Bxg4 {[%emt 0:00:21]} 17. hxg4 {[%emt 0:00:16]} Nd6 {[%emt 0:00:30]} 18. dxc5 {[%emt 0:00:27]} Nxb5 {[%emt 0:00:32]} 19. cxb6 {[%emt 0:00:30]} Nxa3 {[%emt 0:00:35]} 20. Nxa3 {[%emt 0:00:37]} Qxb6 {[%emt 0:00:30]} 21. g5 {[%emt 0:01:53]} hxg5 {[%emt 0:00:35]} 22. Nxg5 {[%emt 0:00:32]} Qg6 {[%emt 0:00:24]} 23. f4 {[%emt 0:00:58]} f6 {[%emt 0:00:25]} 24. Qd5+ {[%emt 0:02:02]} Kh8 {[%emt 0:00:14]} 25. Re6 {[%emt 0:00:59]} Rfd8 {[%emt 0:00:53]} 26. Qc4 {[%emt 0:02:06]} Qh5 {[%emt 0:01:35]} 27. Kg2 {[%emt 0:05:28]} fxg5 {[%emt 0:01:02]} 28. Rh1 {[%emt 0:00:21]} 1-0

[Event "Runavik Open 2018"]
[Site "Runavik"]
[Date "2018.11.17"]
[Round "7"]
[White "Fjallheim, Leif Reinert"]
[Black "Berg, Margar M."]
[Result "0-1"]
[ECO "A09"]
[WhiteElo "1919"]
[BlackElo "1852"]
[Annotator "NA RC"]
[PlyCount "88"]
[EventDate "2018.11.12"]
[EventType "swiss"]
[EventCountry "FAI"]
[SourceTitle "playchess.com"]
[Source "ChessBase"]
[SourceQuality "1"]
[TimeControl "40/5400+30:900+30"]

{[%evp 8,86,77,77,65,56,64,45,64,47,99,53,50,0,0,6,30,36,38,39,58,45,67,49,64,50,78,62,45,30,53,14,77,39,72,66,70,49,75,0,46,24,29,41,30,6,35,36,45,55,59,79,73,-25,0,32767,32767,32767,32767,32767,32767,32767,32767,32767,-136,-411,-420,-1393,-2178,-29973,-29967,-1075,-29981,-29991,-4714,-29967,32767,-29981,32767,-29983,-29981]} 1. Nf3 {[%emt 0:00:00]} d5 {[%emt 0:00:03]} 2. c4 {[%emt 0:00:52]} dxc4 {[%emt 0:00:54]} 3. e3 {[%emt 0:00:23]} Nc6 {[%emt 0:00:17]} 4. Bxc4 {[%emt 0:00:37]} Nf6 {[%emt 0:02:08]} 5. d4 {[%emt 0:02:40]} e6 {[%emt 0:00:57]} 6. O-O {[%emt 0:02:12]} Bd6 {[%emt 0:02:41]} 7. Nc3 {[%emt 0:03:01]} O-O {[%emt 0:02:18] LiveBook: 48 Games} 8. a3 {[%emt 0:02:15]} b6 {[%emt 0:01:54] E51: Nimzo-Indian: Rubinstein: 4...0-0 5 Nf3 d5} (8... a6 $14 9. h3 e5 10. Qc2 Qe8 11. Ba2 Bd7 12. Bd2 exd4 13. exd4 Qc8 14. Ne4 Nxe4 15. Qxe4 Bf5 16. Qh4 Bg6 17. Rfe1 Qf5 18. d5 {½-½ (49) Rusev,K (2548)-Barrientos,S (2465) Baku 2016}) 9. Re1 {[%emt 0:09:21]} e5 $146 {[%emt 0:04:24]} ({Predecessor:} 9... Bb7 10. b4 h6 11. Bb2 Ne7 12. e4 Bf4 13. g3 Bg5 14. h4 Bxh4 15. Nxh4 Rc8 {1-0 (29) Hoshino,K (1618)-De Souza,M (1751) Sao Bernardo do Campo 2013}) 10. Nb5 {[%emt 0:08:31]} e4 {[%emt 0:05:12]} 11. Nxd6 {[%emt 0:03:01]} Qxd6 {[%emt 0:03:05]} 12. Nd2 $1 {[%emt 0:02:01]} Ng4 {[%emt 0:01:10]} 13. Nf1 {[%emt 0:01:19]} Na5 {[%emt 0:03:44]} 14. Ba2 {[%emt 0:03:27]} Qg6 {[%emt 0:01:15]} 15. b4 {[%emt 0:04:01]} Nb7 {[%emt 0:01:24]} 16. Qc2 {[%emt 0:01:50]} c6 {[%emt 0:02:55]} 17. Bb2 {[%emt 0:01:55]} Bd7 {[%emt 0:08:51]} 18. Rac1 {[%emt 0:07:54]} Rac8 {[%emt 0:02:44]} 19. Qe2 {[%emt 0:01:13]} b5 {[%emt 0:07:59]} (19... Nd6 $11) 20. Rc2 {[%emt 0:05:44]} Be6 {[%emt 0:01:10]} 21. d5 {[%emt 0:07:12]} cxd5 {[%emt 0:15:35]} 22. Rxc8 {[%emt 0:03:34]} Rxc8 {[%emt 0:01:04] [#]} 23. Qxb5 {[%emt 0:01:43]} ({White should try} 23. Rd1 $1 $16) 23... Nd6 {[%emt 0:00:40]} 24. Qe2 {[%emt 0:01:30]} h5 {[%emt 0:01:34]} 25. h3 {[%emt 0:08:04]} Nf6 {[%emt 0:02:09]} 26. Kh2 {[%emt 0:00:54]} Nc4 {[%emt 0:04:27]} 27. Rc1 {[%emt 0:05:14]} h4 {[%emt 0:03:51]} 28. Bxc4 {[%emt 0:01:01]} dxc4 {[%emt 0:00:46]} 29. Nd2 {[%emt 0:00:42]} Qf5 {[%emt 0:04:37]} 30. f3 {[%emt 0:09:06]} ({Much weaker is} 30. Nxc4 $6 Qb5 $11) (30. Bd4 $14) 30... exf3 {[%emt 0:05:58]} 31. Nxf3 {[%emt 0:00:50]} Ne4 {[%emt 0:04:31]} 32. Nd4 {[%emt 0:03:02]} Qe5+ {[%emt 0:00:27]} 33. Kg1 {[%emt 0:00:23]} c3 {[%emt 0:00:45]} 34. Nxe6 {[%emt 0:00:45]} Qxe6 {[%emt 0:00:29]} 35. Ba1 {[%emt 0:00:28]} Qb3 {[%emt 0:01:50]} (35... Qd7 $19 {and Black stays clearly on top.} 36. Qc2 f5) 36. Qa6 $2 {[%emt 0:00:17]} (36. Qg4 $17 Qc4 37. Rd1) 36... Rd8 {[%emt 0:00:21]} 37. Rf1 {[%emt 0:00:52]} (37. Kh2 $142 Qd5 38. Qf1) 37... Ng3 {[%emt 0:02:34]} 38. Bxc3 {[%emt 0:00:34]} Nxf1 {[%emt 0:00:58]} 39. Qxf1 {[%emt 0:00:30]} Qxc3 {[%emt 0:00:21]} 40. Qf4 {[%emt 0:00:00]} Qf6 {[%emt 0:00:00]} (40... Rd1+ $142 41. Kf2 Qc2+ 42. Kf3 Rf1+ {[%mdl 64] Skewer} 43. Kg4 Qxg2+ 44. Kxh4 Rxf4+ 45. exf4 Qf3 46. f5 Qf4+ 47. Kh5 f6 48. h4 Qxf5#) 41. Qg4 {[%emt 0:00:48]} Qe6 {[%emt 0:01:20]} 42. Qxh4 {[%emt 0:00:27]} Rd1+ {[%emt 0:00:25]} 43. Kh2 {[%emt 0:00:41]} Qe5+ {[%emt 0:00:08]} 44. g3 {[%emt 0:01:00]} Qb2# {[%emt 0:00:08]} 0-1

[Event "Runavik Open 2018"]
[Site "Runavik"]
[Date "2018.11.17"]
[Round "7"]
[White "Skaale, Janus"]
[Black "Pinheiro Diamant, Jonatan"]
[Result "1/2-1/2"]
[ECO "C55"]
[WhiteElo "1839"]
[BlackElo "1789"]
[Annotator "NA RC"]
[PlyCount "61"]
[EventDate "2018.11.12"]
[EventType "swiss"]
[EventCountry "FAI"]
[SourceTitle "playchess.com"]
[Source "ChessBase"]
[SourceQuality "1"]
[TimeControl "40/5400+30:900+30"]

{[%evp 8,60,26,26,32,43,40,40,42,37,38,6,20,4,64,66,85,20,30,16,23,3,10,10,13,10,13,6,12,15,2,32767,32767,32767,32767,32767,32767,13,18,15,15,22,22,0,0,0,0,0,70,62,64,69,102,0,0]} 1. e4 {[%emt 0:00:00]} e5 {[%emt 0:00:00]} 2. Nf3 {[%emt 0:00:11]} Nc6 {[%emt 0:00:00]} 3. Bc4 {[%emt 0:00:35]} Nf6 {[%emt 0:00:00]} 4. d3 {[%emt 0:01:00]} h6 {[%emt 0:00:00]} 5. h3 {[%emt 0:09:59]} d6 {[%emt 0:02:01] C55: Two Knights: 4 d3, 4 d4 exd4 5 e5 and Max Lange Attack} 6. a4 {[%emt 0:01:53] LiveBook: 5 Games} a5 {[%emt 0:10:21]} (6... g6 7. Nc3 Bg7 8. Be3 O-O 9. Qd2 Kh7 10. g4 Ne8 11. O-O-O Be6 12. Kb1 a6 {0-1 (62) David,A (2572)-Sivuk,V (2509) Paleochora 2016}) 7. Nc3 {[%emt 0:02:46]} g6 $146 {[%emt 0:03:46]} ({Predecessor:} 7... Bd7 8. Be3 Nb4 9. Ne2 c5 10. c3 Nc6 11. Qb3 {1-0 (33) Draaisma,G (1405)-Cox,R St Peter Port 2003}) 8. Be3 {[%emt 0:03:14]} Bg7 {[%emt 0:01:28]} 9. g4 {[%emt 0:16:02]} Qe7 {[%emt 0:04:53]} 10. Qd2 {[%emt 0:02:03]} g5 {[%emt 0:03:25]} (10... Be6 $11) 11. O-O-O {[%emt 0:07:13]} Be6 {[%emt 0:04:23]} 12. Qe2 {[%emt 0:03:06]} (12. Bb5 $16) 12... O-O-O {[%emt 0:02:30]} 13. d4 {[%emt 0:10:16]} d5 $1 {[%emt 0:08:24]} 14. exd5 {[%emt 0:01:35]} Nxd5 {[%emt 0:02:27]} 15. Nxd5 {[%emt 0:06:38]} Bxd5 {[%emt 0:01:47]} 16. Bxd5 {[%emt 0:00:07]} Rxd5 {[%emt 0:00:52]} 17. dxe5 {[%emt 0:07:28]} Rhd8 {[%emt 0:02:51]} 18. Rxd5 {[%emt 0:00:17]} Rxd5 {[%emt 0:00:02]} 19. Rd1 {[%emt 0:00:07]} Rxd1+ {[%emt 0:00:42]} 20. Qxd1 {[%emt 0:00:10]} Nxe5 {[%emt 0:03:22]} 21. Nxe5 {[%emt 0:01:09]} Qxe5 {[%emt 0:03:41]} 22. c3 {[%emt 0:00:52]} f5 {[%emt 0:07:25]} 23. gxf5 {[%emt 0:05:25]} Qxf5 {[%emt 0:03:04]} 24. Qg4 {[%emt 0:03:09]} Qd7 $1 {[%emt 0:01:35]} 25. Qe4 {[%emt 0:04:55]} Kb8 {[%emt 0:04:54]} 26. Qc4 {[%emt 0:02:37]} b6 {[%emt 0:03:33]} 27. h4 {[%emt 0:02:07]} g4 {[%emt 0:03:37]} (27... gxh4 $11 28. Qxh4 Qe6) 28. Qg8+ {[%emt 0:00:55]} Kb7 {[%emt 0:00:54] [#]} 29. Qh7 $1 {[%emt 0:01:31]} Kc8 {[%emt 0:02:09]} 30. Qg8+ {[%emt 0:02:12]} ({Better is} 30. h5 $16) 30... Kb7 $11 {[%emt 0:00:11]} 31. Qh7 {[%emt 0:00:43]} 1/2-1/2